bitfinex/quotes_ETHUSD_20241130
["timestamp","ask_amount","ask_price","bid_price","bid_amount"]
[1732969569308,2.6618,3663.6,3663.3,2.72971]
[1732969569727,2.6618,3663.6,3663.2,4.092034]
[1732969569952,2.6618,3663.6,3663.4,2.72969]
[1732969570258,3.7718,3663.6,3663.4,2.72969]
[1732969571730,4.8818,3663.6,3663.4,2.72969]
[1732969572051,5.63298002,3663.6,3663.4,2.72969]
[1732969572759,5.63298002,3663.6,3663.4,2.72965]
[1732969573115,0.94446333,3663.5,3663.4,2.72965]
[1732969574923,3.61726333,3663.5,3663.4,2.72965]
[1732969575264,3.61726333,3663.5,3663.4,2.78409638]
[1732969575480,4.50810767,3663.5,3663.4,2.78409638]
[1732969575828,4.50810767,3663.5,3663.4,0.05444638]
[1732969576025,4.50810767,3663.5,3663.2,2.72984]
[1732969576240,0.94446333,3663.3,3663.2,2.72984]
[1732969576426,2.50726333,3663.3,3663.2,2.72984]
[1732969576657,3.61726333,3663.3,3663.2,2.72984]
[1732969576862,2.6728,3663.3,3663.2,2.72984]
[1732969578292,4.77464434,3663.3,3663.2,2.72984]
[1732969579889,5.88464434,3663.3,3663.2,2.72984]
[1732969580093,4.8928,3663.3,3663.2,2.72984]
[1732969580967,3.33,3663.3,3663.2,2.72984]
[1732969581303,4.46210332,3663.6,3663.5,5.72963]
[1732969581510,3.32e-06,3663.6,3663.5,6.49383]
[1732969581792,3.32e-06,3663.6,3663.5,6.76653]
[1732969584805,1.11000332,3663.6,3663.5,6.76653]
[1732969585575,3.32e-06,3663.6,3663.5,6.76653]
[1732969586301,1.11000332,3663.6,3663.5,6.76653]
[1732969586904,1.11000332,3663.6,3663.5,7.85835]
[1732969587975,2.22000332,3663.6,3663.5,7.85835]
[1732969589724,3.33000332,3663.6,3663.5,7.85835]
[1732969590200,3.33000332,3663.6,3663.5,7.91257655]
[1732969591167,4.44000332,3663.6,3663.5,7.91257655]
[1732969592898,5.55000332,3663.6,3663.5,7.91257655]
[1732969593701,5.55000332,3663.6,3663.5,7.14837655]
[1732969594668,6.66000332,3663.6,3663.5,7.14837655]
[1732969595596,6.66000332,3663.6,3663.5,6.87567655]
[1732969596171,10.20740365,3663.6,3663.5,3.87567655]
[1732969598004,11.31740365,3663.6,3663.5,3.87567655]
[1732969599702,12.42740365,3663.6,3663.5,3.87567655]
[1732969601373,13.53740365,3663.6,3663.5,3.87567655]
[1732969603107,14.64740365,3663.6,3663.5,3.87567655]
[1732969605313,15.75740365,3663.6,3663.5,3.87567655]
[1732969607672,16.86740365,3663.6,3663.5,3.87567655]
[1732969609692,17.97740365,3663.6,3663.5,3.87567655]
[1732969611475,19.08740365,3663.6,3663.5,3.87567655]
[1732969613175,20.19740365,3663.6,3663.5,3.87567655]
[1732969614892,21.30740365,3663.6,3663.5,3.87567655]
[1732969616686,22.41740365,3663.6,3663.5,3.87567655]
[1732969618429,23.52740365,3663.6,3663.5,3.87567655]
[1732969619996,24.63740365,3663.6,3663.5,3.87567655]
[1732969622227,25.74740365,3663.6,3663.5,3.87567655]
[1732969623638,23.31000332,3663.6,3663.5,3.87567655]
[1732969623936,24.42000332,3663.6,3663.5,6.87567655]
[1732969625488,25.53000332,3663.6,3663.5,6.87567655]
[1732969627199,26.64000332,3663.6,3663.5,6.87567655]
[1732969628826,27.75000332,3663.6,3663.5,6.87567655]
[1732969630489,27.75000332,3663.6,3663.5,7.14837655]
[1732969630684,28.86000332,3663.6,3663.5,7.14837655]
[1732969632136,28.86000332,3663.6,3663.5,6.87567655]
[1732969632319,31.85748777,3663.6,3663.5,6.87567655]
[1732969632494,33.39488777,3663.6,3663.5,6.87567655]
[1732969632694,33.39488777,3663.6,3663.5,3.87567655]
[1732969632896,33.39488777,3663.6,3663.5,3.82145]
[1732969634048,31.08000332,3663.6,3663.5,3.82145]
[1732969634405,31.08000332,3663.6,3663.5,3.87580988]
[1732969634640,31.08000332,3663.6,3663.5,6.87580988]
[1732969635604,32.19000332,3663.6,3663.5,6.87580988]
[1732969637252,33.30000332,3663.6,3663.5,6.87580988]
[1732969638922,34.41000332,3663.6,3663.5,6.87580988]
[1732969640652,35.52000332,3663.6,3663.5,6.87580988]
[1732969642248,36.63000332,3663.6,3663.5,6.87580988]
[1732969642615,36.63000332,3663.6,3663.5,5.78398988]
[1732969643915,37.74000332,3663.6,3663.5,5.78398988]
[1732969645661,38.85000332,3663.6,3663.5,5.78398988]
[1732969647224,39.96000332,3663.6,3663.5,5.78398988]
[1732969649049,41.07000332,3663.6,3663.5,5.78398988]
[1732969650680,42.18000332,3663.6,3663.5,5.78398988]
[1732969652236,43.29000332,3663.6,3663.5,6.54818988]
[1732969652955,39.19566332,3663.6,3663.5,7.37088988]
[1732969653867,40.30566332,3663.6,3663.5,7.37088988]
[1732969655681,41.41566332,3663.6,3663.5,7.37088988]
[1732969657489,42.52566332,3663.6,3663.5,7.37088988]
[1732969658658,42.52566332,3663.6,3663.5,7.90418317]
[1732969659167,43.63566332,3663.6,3663.5,7.90418317]
[1732969661249,44.74566332,3663.6,3663.5,7.90418317]
[1732969662974,45.85566332,3663.6,3663.5,7.90418317]
[1732969665314,46.96566332,3663.6,3663.5,6.05668988]
[1732969667602,48.07566332,3663.6,3663.5,6.05668988]
[1732969667961,48.07566332,3663.6,3663.5,6.00233]
[1732969668612,50.80149879,3663.6,3663.5,2.72963]
[1732969668772,52.38139879,3663.6,3663.5,2.72963]
[1732969669510,53.49139879,3663.6,3663.5,2.72963]
[1732969670010,53.49139879,3663.6,3663.5,5.72963]
[1732969670178,50.76556332,3663.6,3663.5,5.78392721]
[1732969670915,51.87556332,3663.6,3663.5,5.78392721]
[1732969672733,52.98556332,3663.6,3663.5,5.78392721]
[1732969673037,52.98556332,3663.6,3663.5,5.72963]
[1732969673194,52.98556332,3663.6,3663.5,5.78036531]
[1732969673391,55.71139879,3663.6,3663.5,5.78036531]
[1732969674022,52.98556332,3663.6,3663.5,5.78036531]
[1732969674207,51.40566332,3663.6,3663.5,5.78036531]
[1732969674395,52.51566332,3663.6,3663.5,5.78036531]
[1732969676230,53.62566332,3663.6,3663.5,5.78036531]
[1732969677831,54.73566332,3663.6,3663.5,5.78036531]
[1732969679522,55.84566332,3663.6,3663.5,5.78036531]
[1732969680715,55.84566332,3663.6,3663.5,6.05306531]
[1732969681148,56.95566332,3663.6,3663.5,6.05306531]
[1732969681556,56.95566332,3663.6,3663.5,5.78036531]
[1732969682211,56.95566332,3663.6,3663.5,6.54456531]
[1732969682712,58.06566332,3663.6,3663.5,6.81726531]
[1732969684549,59.17566332,3663.6,3663.5,6.81726531]
[1732969685443,59.17566332,3663.6,3663.5,6.05306531]
[1732969686159,60.28566332,3663.6,3663.5,6.05306531]
[1732969687914,61.39566332,3663.6,3663.5,6.05306531]
[1732969689514,62.50566332,3663.6,3663.5,6.05306531]
[1732969690455,62.50566332,3663.6,3663.5,6.81726531]
[1732969691452,63.61566332,3663.6,3663.5,6.81726531]
[1732969693782,64.72566332,3663.6,3663.5,6.81726531]
[1732969694469,64.72566332,3663.6,3663.5,6.05306531]
[1732969695440,65.83566332,3663.6,3663.5,6.05306531]
[1732969695613,65.83566332,3663.6,3663.5,6.81726531]
[1732969697055,66.94566332,3663.6,3663.5,6.81726531]
[1732969698719,68.05566332,3663.6,3663.5,6.81726531]
[1732969700319,69.16566332,3663.6,3663.5,6.81726531]
[1732969700831,69.16566332,3663.6,3663.5,6.05306531]
[1732969701918,70.27566332,3663.6,3663.5,6.05306531]
[1732969702556,70.27566332,3663.6,3663.5,6.00233]
[1732969702732,70.27566332,3663.6,3663.5,6.05301521]
[1732969703522,71.38566332,3663.6,3663.5,6.05301521]
[1732969705221,72.49566332,3663.6,3663.5,6.05301521]
[1732969705656,72.49566332,3663.6,3663.5,6.00233]
[1732969707261,73.60566332,3663.6,3663.5,6.00233]
[1732969709053,74.71566332,3663.6,3663.5,6.00233]
[1732969710866,75.82566332,3663.6,3663.5,6.00233]
[1732969712486,76.93566332,3663.6,3663.5,6.00233]
[1732969714283,78.04566332,3663.6,3663.5,6.00233]
[1732969715057,78.04566332,3663.6,3663.5,5.72963]
[1732969715265,80.29881659,3663.6,3663.5,5.72963]
[1732969715466,81.84891659,3663.6,3663.5,5.72963]
[1732969715925,82.95891659,3663.6,3663.5,5.72963]
[1732969717709,84.06891659,3663.6,3663.5,5.72963]
[1732969719115,85.17891659,3663.6,3663.5,5.72963]
[1732969720780,86.28891659,3663.6,3663.5,5.72963]
[1732969722912,87.39891659,3663.6,3663.5,5.72963]
[1732969724319,88.50891659,3663.6,3663.5,5.72963]
[1732969725422,84.70566332,3663.6,3663.5,5.72963]
[1732969725637,84.70566332,3663.6,3663.5,7.43824327]
[1732969725927,85.81566332,3663.6,3663.5,6.76653]
[1732969727016,85.81566332,3663.6,3663.5,6.00233]
[1732969727580,86.92566332,3663.6,3663.5,6.00233]
[1732969728907,86.92566332,3663.6,3663.5,6.76653]
[1732969729421,88.03566332,3663.6,3663.5,6.76653]
[1732969730137,85.30610332,3663.6,3663.5,6.76653]
[1732969730895,86.41610332,3663.6,3663.5,6.76653]
[1732969731489,86.41610332,3663.6,3663.5,7.71094327]
[1732969731697,83.68654332,3663.6,3663.5,7.71094327]
[1732969732383,80.70220332,3663.6,3663.5,8.26094327]
[1732969732718,79.33742332,3663.6,3663.5,8.26094327]
[1732969734108,77.71786332,3663.6,3663.5,8.26094327]
[1732969734325,74.98830332,3663.6,3663.5,8.26094327]
[1732969734596,73.62352332,3663.6,3663.5,8.30992563]
[1732969734825,69.52918332,3663.6,3663.5,8.85632269]
[1732969735838,70.63918332,3663.6,3663.5,8.85632269]
[1732969737032,70.63918332,3663.6,3663.5,7.91190942]
[1732969737400,71.74918332,3663.6,3663.5,7.14770942]
[1732969739051,72.85918332,3663.6,3663.5,7.14770942]
[1732969739541,72.85918332,3663.6,3663.5,6.60131236]
[1732969739923,72.85918332,3663.6,3663.5,6.55233]
[1732969740703,73.96918332,3663.6,3663.5,6.55233]
[1732969742313,75.07918332,3663.6,3663.5,6.55233]
[1732969743745,75.07918332,3663.6,3663.5,7.49674327]
[1732969743915,76.18918332,3663.6,3663.5,7.49674327]
[1732969744115,76.18918332,3663.6,3663.5,7.5456843]
[1732969744529,76.18918332,3663.6,3663.5,7.49674327]
[1732969744948,76.18918332,3663.6,3663.5,7.5456843]
[1732969745748,77.29918332,3663.6,3663.5,7.5456843]
[1732969746060,77.29918332,3663.6,3663.5,7.49674327]
[1732969746357,80.46657994,3663.6,3663.5,2.72963]
[1732969747664,81.57657994,3663.6,3663.5,5.72963]
[1732969749666,82.68657994,3663.6,3663.5,5.72963]
[1732969751270,82.68657994,3663.6,3663.5,6.00233]
[1732969751429,83.79657994,3663.6,3663.5,5.72963]
[1732969753040,84.90657994,3663.6,3663.5,5.72963]
[1732969754901,86.01657994,3663.6,3663.5,5.72963]
[1732969756486,87.12657994,3663.6,3663.5,5.72963]
[1732969756684,83.95918332,3663.6,3663.5,5.72963]
[1732969758058,85.06918332,3663.6,3663.5,5.72963]
[1732969758994,85.06918332,3663.6,3663.5,6.27963]
[1732969759495,85.06918332,3663.6,3663.5,6.32867901]
[1732969759658,86.17918332,3663.6,3663.5,6.32867901]
[1732969759856,86.17918332,3663.6,3663.5,6.27963]
[1732969760100,86.17918332,3663.6,3663.5,6.32706666]
[1732969761457,87.28918332,3663.6,3663.5,6.27963]
[1732969762767,87.28918332,3663.6,3663.5,6.55243]
[1732969762985,87.28918332,3663.6,3663.5,6.59986666]
[1732969763160,88.39918332,3663.6,3663.5,6.59986666]
[1732969765443,89.50918332,3663.6,3663.5,6.59986666]
[1732969767722,90.61918332,3663.6,3663.5,6.59986666]
[1732969767930,90.61918332,3663.6,3663.5,6.55243]
[1732969768429,90.61918332,3663.6,3663.5,7.31663]
[1732969769221,91.72918332,3663.6,3663.5,7.31663]
[1732969770905,92.83918332,3663.6,3663.5,7.31663]
[1732969772775,93.94918332,3663.6,3663.5,7.31663]
[1732969772907,93.94918332,3663.6,3663.5,6.55243]
[1732969773806,95.51438332,3663.6,3663.5,6.00243]
[1732969774118,98.24021879,3663.6,3663.5,6.00243]
[1732969774324,99.35021879,3663.6,3663.5,3.00243]
[1732969774532,99.35021879,3663.6,3663.5,2.72963]
[1732969776008,100.46021879,3663.6,3663.5,5.72963]
[1732969777725,101.57021879,3663.6,3663.5,5.72963]
[1732969779144,101.57021879,3663.6,3663.3,2.72977]
[1732969779321,2.72583547,3663.5,3663.3,2.72977]
[1732969779759,2.72583547,3663.5,3663.2,2.72979]
[1732969780762,2.72583547,3663.5,3663.3,2.72977]
[1732969780956,3.83583547,3663.5,3663.3,2.72977]
[1732969781159,2.72583547,3663.4,3663.3,2.72977]
[1732969781661,2.72583547,3663.4,3663.2,2.72984]
[1732969782373,1.5533,3663.3,3663.2,2.72984]
[1732969782930,1.5533,3663.3,3663.1,2.7299]
[1732969783460,1.5533,3663.3,3662.9,4.091977]
[1732969783782,0.92249709,3663.2,3663.0,2.72995]
[1732969784157,2.03249709,3663.2,3663.0,2.72995]
[1732969784456,1.5533,3663.1,3662.9,4.091977]
[1732969784772,1.5533,3663.1,3663.0,2.73]
[1732969785183,1.5533,3663.1,3662.9,1.091977]
[1732969785379,2.29546326,3663.1,3662.9,1.091977]
[1732969785892,3.40546326,3663.1,3662.9,1.091977]
[1732969786053,3.40546326,3663.1,3662.9,3.822037]
[1732969786253,3.40546326,3663.1,3663.0,2.73]
[1732969786672,2.6633,3663.1,3663.0,2.73]
[1732969787568,3.7733,3663.1,3663.0,2.73]
[1732969789255,4.8833,3663.1,3663.0,2.73]
[1732969790503,4.8833,3663.1,3662.9,3.822037]
[1732969790877,5.9933,3663.1,3662.9,3.822037]
[1732969791078,0.71033,3663.0,3662.9,6.822037]
[1732969791308,5.9933,3663.1,3662.9,6.822037]
[1732969792281,5.9933,3663.1,3663.0,2.73]
[1732969792483,7.1033,3663.1,3663.0,2.73]
[1732969794199,8.2133,3663.1,3663.0,2.73]
[1732969795112,8.2133,3663.1,3662.9,1.091977]
[1732969795369,1.6476,3662.9,3662.2,2.73058]
[1732969795799,1.6476,3662.8,3662.3,1.092382]
[1732969796224,1.6476,3662.8,3662.4,0.04495987]
[1732969797406,1.11,3662.8,3662.4,0.04495987]
[1732969797635,1.6476,3662.7,3662.4,0.04495987]
[1732969797834,0.65977,3662.6,3662.4,0.04495987]
[1732969798131,1.6476,3662.5,3662.2,1.092414]
[1732969798540,1.6476,3662.5,3662.1,2.73066]
[1732969798700,1.6476,3662.5,3662.1,3.8231]
[1732969799354,2.7576,3662.5,3662.1,3.8231]
[1732969799536,0.341737,3662.4,3662.1,3.8231]
[1732969800047,0.341737,3662.4,3662.2,2.77555627]
[1732969800252,2.7576,3662.5,3662.3,2.73046]
[1732969800558,2.7576,3662.5,3662.4,2.73044]
[1732969801010,2.22,3662.5,3662.4,2.73044]
[1732969802729,3.33,3662.5,3662.4,2.73044]
[1732969804487,4.44,3662.5,3662.4,2.73044]
[1732969805612,4.44,3662.5,3662.4,5.73044]
[1732969806052,5.55,3662.5,3662.4,5.73044]
[1732969807819,6.66,3662.5,3662.4,5.73044]
[1732969809459,7.77,3662.5,3662.4,5.73044]
[1732969811041,8.88,3662.5,3662.4,5.73044]
[1732969812718,9.99,3662.5,3662.4,5.73044]
[1732969814429,11.1,3662.5,3662.4,5.73044]
[1732969815026,11.1,3662.5,3662.4,2.73044]
[1732969815269,13.939,3662.5,3662.4,2.73044]
[1732969816065,13.828,3662.5,3662.4,2.73044]
[1732969817546,12.21,3662.5,3662.4,2.73044]
[1732969817906,13.32,3662.5,3662.4,2.77550626]
[1732969819336,14.43,3662.5,3662.4,2.77550626]
[1732969820082,16.0041,3662.5,3662.4,2.77550626]
[1732969821361,17.1141,3662.5,3662.4,2.77550626]
[1732969822005,15.54,3662.5,3662.4,2.77550626]
[1732969822856,16.65,3662.5,3662.4,2.77550626]
[1732969824408,17.76,3662.5,3662.4,2.77550626]
[1732969826108,18.87,3662.5,3662.4,2.77550626]
[1732969827706,18.87,3662.5,3662.4,6.71991953]
[1732969827866,19.98,3662.5,3662.4,6.71991953]
[1732969829689,21.09,3662.5,3662.4,6.71991953]
[1732969830299,21.09,3662.5,3662.4,6.99271953]
[1732969830699,21.09,3662.5,3662.4,8.30691953]
[1732969831106,21.09,3662.5,3662.4,6.04830626]
[1732969831420,24.22968267,3662.5,3662.4,6.04830626]
[1732969831635,22.2,3662.5,3662.4,6.04830626]
[1732969831920,23.7752,3662.5,3662.4,0.04506626]
[1732969832221,22.2,3662.5,3662.0,2.73072]
[1732969832430,22.2,3662.5,3661.6,0.94441327]
[1732969832431,1.5752,3662.4,3662.2,2.73054]
[1732969832635,2.37752,3662.3,3662.2,2.73054]
[1732969833084,2.37752,3662.3,3662.0,2.73073]
[1732969833288,1.5752,3662.2,3662.0,2.73073]
[1732969833483,1.5752,3662.2,3662.1,2.73067]
[1732969834596,1.11,3662.2,3662.1,2.73067]
[1732969836131,1.11,3662.2,3662.1,5.73067]
[1732969836301,2.22,3662.2,3662.1,5.73067]
[1732969837228,4.93126,3662.2,3662.1,5.73067]
[1732969838003,6.04126,3662.2,3662.1,5.73067]
[1732969838588,7.62386,3662.2,3662.1,2.77588905]
[1732969839132,7.62386,3662.2,3662.1,0.04521905]
[1732969839438,7.62386,3662.2,3662.0,2.73074]
[1732969839732,0.873386,3662.1,3662.0,2.73074]
[1732969841278,1.983386,3662.1,3662.0,2.73074]
[1732969841979,1.983386,3662.1,3662.0,3.67515327]
[1732969842132,1.11,3662.1,3662.0,3.67515327]
[1732969842976,2.22,3662.1,3662.0,3.67515327]
[1732969843672,2.22,3662.1,3662.0,2.73074]
[1732969844479,3.33,3662.1,3662.0,2.73074]
[1732969844992,3.33,3662.1,3662.0,3.67515327]
[1732969846073,4.44,3662.1,3662.0,3.67515327]
[1732969847889,5.55,3662.1,3662.0,6.67515327]
[1732969848069,5.55,3662.1,3662.0,7.43935327]
[1732969848280,5.55,3662.1,3662.0,6.67515327]
[1732969849567,6.66,3662.1,3662.0,6.67515327]
[1732969851293,7.77,3662.1,3662.0,6.67515327]
[1732969852898,8.88,3662.1,3662.0,6.67515327]
[1732969853255,8.88,3662.1,3662.0,7.43935327]
[1732969853669,8.88,3662.1,3662.0,8.03468397]
[1732969854362,9.99,3662.1,3662.0,8.03468397]
[1732969855007,5.89398,3662.1,3662.0,8.03468397]
[1732969855292,3.5074,3662.2,3662.0,8.30748397]
[1732969855542,0.7768,3662.2,3662.1,7.31767]
[1732969855883,1.8868,3662.2,3662.1,7.36292361]
[1732969857555,2.9968,3662.2,3662.1,7.36292361]
[1732969857759,1.6315,3662.2,3662.1,7.36292361]
[1732969859094,1.6315,3662.2,3662.1,7.78981621]
[1732969859344,2.7415,3662.2,3662.1,7.78981621]
[1732969860804,3.8515,3662.2,3662.1,7.78981621]
[1732969861544,3.8515,3662.2,3662.1,8.73422948]
[1732969862538,4.9615,3662.2,3662.1,8.73422948]
[1732969863150,4.9615,3662.2,3662.1,7.78981621]
[1732969863438,4.9615,3662.2,3662.1,8.73422948]
[1732969864232,6.0715,3662.2,3662.1,8.30733688]
[1732969866001,7.1815,3662.2,3662.1,8.30733688]
[1732969866304,3.0856,3662.2,3662.1,8.30733688]
[1732969867059,22.2,3662.5,3662.4,0.8228]
[1732969867221,22.2,3662.5,3662.4,7.49765327]
[1732969867421,22.2,3662.5,3662.4,7.54262113]
[1732969867606,23.31,3662.5,3662.4,7.54262113]
[1732969869207,24.42,3662.5,3662.4,7.54262113]
[1732969870775,18.70405,3662.5,3662.4,8.30682113]
[1732969872455,19.81405,3662.5,3662.4,8.30682113]
[1732969872833,19.81405,3662.5,3662.4,7.36240786]
[1732969873154,19.81405,3662.5,3662.4,7.54262113]
[1732969873973,20.92405,3662.5,3662.4,7.54262113]
[1732969875656,22.03405,3662.5,3662.4,7.54262113]
[1732969876439,22.03405,3662.5,3662.4,8.30682113]
[1732969877249,23.14405,3662.5,3662.4,8.30682113]
[1732969877492,10.38749198,3662.5,3662.4,9.58110241]
[1732969878300,9.02230198,3662.5,3662.4,9.58110241]
[1732969879005,6.03673198,3662.5,3662.4,9.78388298]
[1732969879292,4.67154198,3662.5,3662.4,9.78388298]
[1732969879459,1.94116198,3662.5,3662.4,9.78388298]
[1732969879790,1.98e-06,3662.5,3662.4,9.78388298]
[1732969880143,1.98e-06,3662.8,3662.4,9.01968298]
[1732969880364,6.66,3663.1,3662.4,9.01968298]
[1732969880365,2.56512198,3663.1,3663.0,3.767]
[1732969880690,0.65209437,3663.1,3663.0,9.40860711]
[1732969881197,0.65209437,3663.1,3663.0,9.45268192]
[1732969881405,4.37e-06,3663.4,3663.3,3.55257]
[1732969881539,4.37e-06,3663.5,3663.3,7.31677]
[1732969881744,4.37e-06,3663.5,3663.4,6.67860711]
[1732969881986,4.37e-06,3663.5,3663.4,9.40830711]
[1732969882143,1.11000437,3663.5,3663.4,9.40830711]
[1732969883981,2.22000437,3663.5,3663.4,9.40830711]
[1732969885986,3.33000437,3663.5,3663.4,9.40830711]
[1732969886153,3.33000437,3663.5,3663.4,8.09410711]
[1732969886154,5.30971487,3663.5,3663.4,8.09410711]
[1732969886356,5.30971487,3663.5,3663.4,4.82130711]
[1732969887457,6.41971487,3663.5,3663.4,4.82130711]
[1732969887659,6.41971487,3663.5,3663.4,7.82130711]
[1732969888443,4.44000437,3663.5,3663.4,7.82130711]
[1732969888986,4.44000437,3663.5,3663.4,8.37130711]
[1732969889189,5.55000437,3663.5,3663.4,8.37130711]
[1732969889484,5.55000437,3663.5,3663.4,7.82130711]
[1732969890878,6.66000437,3663.5,3663.4,8.91315611]
[1732969892792,7.77000437,3663.5,3663.4,8.91315611]
[1732969894472,8.88000437,3663.5,3663.4,8.91315611]
[1732969894793,8.88000437,3663.5,3663.4,9.18595611]
[1732969895344,8.88000437,3663.5,3663.4,9.73595611]
[1732969895954,9.99000437,3663.5,3663.4,9.73595611]
[1732969897513,9.99000437,3663.5,3663.4,10.50015611]
[1732969897825,11.10000437,3663.5,3663.4,10.50015611]
[1732969899519,12.21000437,3663.5,3663.4,10.50015611]
[1732969901321,13.32000437,3663.5,3663.4,10.50015611]
[1732969902634,13.32000437,3663.5,3663.4,9.73595611]
[1732969902828,14.43000437,3663.5,3663.4,9.73595611]
[1732969903034,14.43000437,3663.5,3663.4,9.18595611]
[1732969904323,15.54000437,3663.5,3663.4,9.18595611]
[1732969906125,16.65000437,3663.5,3663.4,9.18595611]
[1732969907827,17.76000437,3663.5,3663.4,9.18595611]
[1732969909411,18.87000437,3663.5,3663.4,9.18595611]
[1732969911031,19.98000437,3663.5,3663.4,9.18595611]
[1732969912808,21.09000437,3663.5,3663.4,8.03823714]
[1732969914843,22.20000437,3663.5,3663.4,8.03823714]
[1732969916518,23.31000437,3663.5,3663.4,8.03823714]
[1732969917226,23.31000437,3663.5,3663.4,7.094349]
[1732969917227,27.69903984,3663.5,3663.4,7.094349]
[1732969918241,28.80903984,3663.5,3663.4,7.094349]
[1732969919831,29.91903984,3663.5,3663.4,7.094349]
[1732969921583,31.02903984,3663.5,3663.4,7.094349]
[1732969923259,32.13903984,3663.5,3663.4,7.094349]
[1732969925185,33.24903984,3663.5,3663.4,7.094349]
[1732969926337,28.86000437,3663.5,3663.4,7.094349]
[1732969926881,29.97000437,3663.5,3663.4,7.094349]
[1732969927099,29.97000437,3663.5,3663.4,8.408549]
[1732969928708,31.08000437,3663.5,3663.4,8.408549]
[1732969930750,32.19000437,3663.5,3663.4,8.408549]
[1732969931865,30.82518437,3663.5,3663.4,8.408549]
[1732969932614,26.36845742,3663.5,3663.4,8.408549]
[1732969934203,27.47845742,3663.5,3663.4,8.408549]
[1732969934380,27.42585359,3663.5,3663.4,8.408549]
[1732969935442,21.90235203,3663.5,3663.4,8.408549]
[1732969935591,20.49168375,3663.5,3663.4,8.408549]
[1732969935797,21.60168375,3663.5,3663.4,8.408549]
[1732969936701,18.87204375,3663.5,3663.4,8.408549]
[1732969937345,14.52276375,3663.5,3663.4,8.408549]
[1732969937536,13.15794375,3663.5,3663.4,8.408549]
[1732969938199,11.79312375,3663.5,3663.4,8.408549]
[1732969938401,10.42830375,3663.5,3663.4,8.408549]
[1732969938616,6.255182,3663.5,3663.4,8.408549]
[1732969938908,7.365182,3663.5,3663.4,8.408549]
[1732969940539,1.43887878,3663.5,3663.4,8.408549]
[1732969940774,0.68974741,3663.5,3663.4,9.35243714]
[1732969941300,93.61981073,3663.6,3663.5,6.55243]
[1732969941538,92.18442843,3663.6,3663.5,6.55243]
[1732969941747,92.18442843,3663.6,3663.5,6.59610244]
[1732969942350,90.56486843,3663.6,3663.5,7.53999058]
[1732969942559,86.42487632,3663.6,3663.5,7.53999058]
[1732969942867,86.42487632,3663.6,3663.5,6.59610244]
[1732969943165,86.42487632,3663.6,3663.5,7.53999058]
[1732969943927,87.53487632,3663.6,3663.5,7.53999058]
[1732969945738,88.64487632,3663.6,3663.5,7.53999058]
[1732969947777,89.75487632,3663.6,3663.5,6.04610244]
[1732969947941,91.35767632,3663.6,3663.5,6.98999058]
[1732969948135,91.35767632,3663.6,3663.5,6.94631814]
[1732969949447,92.46767632,3663.6,3663.5,6.94631814]
[1732969950676,95.19351179,3663.6,3663.5,3.94631814]
[1732969951043,96.30351179,3663.6,3663.5,0.2728]
[1732969952677,97.41351179,3663.6,3663.5,6.00243]
[1732969953040,97.41351179,3663.6,3663.5,3.00243]
[1732969953478,97.41351179,3663.6,3663.5,6.00243]
[1732969953682,97.41351179,3663.6,3663.5,6.94631814]
[1732969953884,94.68767632,3663.6,3663.5,6.94631814]
[1732969954389,95.79767632,3663.6,3663.5,6.94631814]
[1732969954690,95.79767632,3663.6,3663.5,6.67351814]
[1732969955992,96.90767632,3663.6,3663.5,6.67351814]
[1732969957561,98.01767632,3663.6,3663.5,6.67351814]
[1732969959791,99.12767632,3663.6,3663.5,6.67351814]
[1732969961398,100.23767632,3663.6,3663.5,6.67351814]
[1732969963305,101.34767632,3663.6,3663.5,6.67351814]
[1732969964850,102.45767632,3663.6,3663.5,6.67351814]
[1732969966615,103.56767632,3663.6,3663.5,6.67351814]
[1732969967112,101.96487632,3663.6,3663.5,6.67351814]
[1732969968710,103.07487632,3663.6,3663.5,6.67351814]
[1732969970304,104.18487632,3663.6,3663.5,6.67351814]
[1732969971619,104.18487632,3663.6,3663.5,7.49631814]
[1732969972075,105.29487632,3663.6,3663.5,7.49631814]
[1732969973701,106.40487632,3663.6,3663.5,7.49631814]
[1732969975309,107.51487632,3663.6,3663.5,7.49631814]
[1732969977110,108.62487632,3663.6,3663.5,7.49631814]
[1732969978709,109.73487632,3663.6,3663.5,7.49631814]
[1732969980443,110.84487632,3663.6,3663.5,7.49631814]
[1732969981722,104.02097632,3663.6,3663.5,8.26051814]
[1732969982122,105.13097632,3663.6,3663.5,8.26051814]
[1732969982360,103.76619632,3663.6,3663.5,8.26051814]
[1732969983851,102.14663632,3663.6,3663.5,8.26051814]
[1732969984025,99.41707632,3663.6,3663.5,9.20440628]
[1732969984224,99.41707632,3663.6,3663.5,9.30440628]
[1732969984461,96.68751632,3663.6,3663.5,9.3481571]
[1732969984666,95.32273632,3663.6,3663.5,8.26051814]
[1732969985351,92.33839632,3663.6,3663.5,8.30426896]
[1732969985555,92.33839632,3663.6,3663.5,9.2481571]
[1732969986220,90.97361632,3663.6,3663.5,9.2481571]
[1732969986717,88.8,3663.6,3663.5,8.30426896]
[1732969986952,89.35405632,3663.6,3663.5,8.30426896]
[1732969988969,89.09927632,3663.6,3663.5,8.30426896]
[1732969989271,87.73449632,3663.6,3663.5,8.30426896]
[1732969989474,85.00493632,3663.6,3663.5,8.30426896]
[1732969990033,82.27537632,3663.6,3663.5,8.30426896]
[1732969990230,80.91059632,3663.6,3663.5,8.30426896]
[1732969990534,77.92625632,3663.6,3663.5,8.30426896]
[1732969991372,76.56147632,3663.6,3663.5,8.30426896]
[1732969991575,72.46713632,3663.6,3663.5,8.30426896]
[1732969992276,70.84757632,3663.6,3663.5,8.30426896]
[1732969993672,69.22801632,3663.6,3663.5,8.30426896]
[1732969993836,67.86323632,3663.6,3663.5,8.30426896]
[1732969994033,65.13367632,3663.6,3663.5,8.30426896]
[1732969994479,63.76889632,3663.6,3663.5,8.30426896]
[1732969994684,62.40411632,3663.6,3663.5,8.30426896]
[1732969994889,59.67455632,3663.6,3663.5,8.30426896]
[1732969995453,60.78455632,3663.6,3663.5,8.30426896]
[1732969995690,60.78455632,3663.6,3663.5,6.04618082]
[1732969996005,63.51039179,3663.6,3663.5,6.99006896]
[1732969996564,60.78455632,3663.6,3663.5,6.99006896]
[1732969997146,61.89455632,3663.6,3663.5,6.99006896]
[1732969997897,61.89455632,3663.6,3663.5,7.54006896]
[1732969998766,60.27499632,3663.6,3663.5,8.4839571]
[1732969998967,56.18065632,3663.6,3663.5,9.2481571]
[1732969999413,54.81587632,3663.6,3663.5,9.2481571]
[1732969999579,52.08631632,3663.6,3663.5,9.2481571]